[Event "Early-Titled-Tuesday-Blitz-March-05-2024"]
[Site "Chess.com"]
[Date "2024.03.05"]
[Round "10"]
[White "FischerKasparow"]
[Black "fandebobbyfischer"]
[Result "1/2-1/2"]
[WhiteElo "2091"]
[BlackElo "2682"]
[TimeControl "180+1"]
[EndTime "9:59:18 PST"]
[Termination "Game drawn - insufficient material"]

1. e4 {[%clk 0:03:00.9]} 1... d5 {[%clk 0:02:59.2]} 2. exd5 {[%clk 0:03:00.3]}
2... Qxd5 {[%clk 0:03:00.1]} 3. Nc3 {[%clk 0:03:00.6]} 3... Qe5+ {[%clk
0:03:00.4]} 4. Qe2 {[%clk 0:02:55.6]} 4... Qxe2+ {[%clk 0:03:00.1]} 5. Bxe2
{[%clk 0:02:55.4]} 5... Bf5 {[%clk 0:03:00.5]} 6. d3 {[%clk 0:02:54.6]} 6... Nc6
{[%clk 0:03:00.3]} 7. Nf3 {[%clk 0:02:54.5]} 7... O-O-O {[%clk 0:03:00.3]} 8.
O-O {[%clk 0:02:54.2]} 8... e5 {[%clk 0:02:56]} 9. Be3 {[%clk 0:02:46.9]} 9...
Nf6 {[%clk 0:02:53.7]} 10. h3 {[%clk 0:02:45.9]} 10... Bd6 {[%clk 0:02:51.9]}
11. Nb5 {[%clk 0:02:43.8]} 11... Kb8 {[%clk 0:02:12.7]} 12. Nxd6 {[%clk
0:02:39.9]} 12... cxd6 {[%clk 0:02:13.6]} 13. a3 {[%clk 0:02:20.6]} 13... d5
{[%clk 0:02:11.9]} 14. b4 {[%clk 0:02:17.7]} 14... d4 {[%clk 0:01:37.2]} 15. Bg5
{[%clk 0:02:16.2]} 15... Rd5 {[%clk 0:01:33]} 16. Nd2 {[%clk 0:01:59.2]} 16...
Nd7 {[%clk 0:01:11.9]} 17. Bf3 {[%clk 0:01:58]} 17... Rd6 {[%clk 0:01:12.2]} 18.
b5 {[%clk 0:01:51]} 18... Na5 {[%clk 0:01:04.7]} 19. Be7 {[%clk 0:01:32.3]}
19... Rg6 {[%clk 0:00:44.4]} 20. Bb4 {[%clk 0:01:28.7]} 20... b6 {[%clk
0:00:44.7]} 21. Kh2 {[%clk 0:01:25]} 21... Rc8 {[%clk 0:00:40.9]} 22. Rac1
{[%clk 0:01:22.5]} 22... Be6 {[%clk 0:00:38.6]} 23. Bd6+ {[%clk 0:01:17.1]}
23... Rc7 {[%clk 0:00:38.3]} 24. Bxc7+ {[%clk 0:01:13.8]} 24... Kxc7 {[%clk
0:00:39.2]} 25. Rfe1 {[%clk 0:01:10.3]} 25... f5 {[%clk 0:00:37]} 26. c3 {[%clk
0:01:06.6]} 26... dxc3 {[%clk 0:00:36.6]} 27. Rxc3+ {[%clk 0:01:06.4]} 27... Kd6
{[%clk 0:00:37.5]} 28. Nc4+ {[%clk 0:01:03.1]} 28... Nxc4 {[%clk 0:00:32.6]} 29.
dxc4 {[%clk 0:01:03.4]} 29... e4 {[%clk 0:00:32.8]} 30. Be2 {[%clk 0:01:02.3]}
30... Nc5 {[%clk 0:00:33]} 31. Rd1+ {[%clk 0:01:00.9]} 31... Ke7 {[%clk
0:00:33]} 32. g3 {[%clk 0:00:56.3]} 32... Rf6 {[%clk 0:00:31.5]} 33. Rd4 {[%clk
0:00:51.5]} 33... g5 {[%clk 0:00:30]} 34. f4 {[%clk 0:00:49.8]} 34... gxf4
{[%clk 0:00:28.8]} 35. gxf4 {[%clk 0:00:50]} 35... Rf8 {[%clk 0:00:29.7]} 36.
Rc1 {[%clk 0:00:48.4]} 36... Nb3 {[%clk 0:00:29]} 37. Rcd1 {[%clk 0:00:47.2]}
37... Nxd4 {[%clk 0:00:29.1]} 38. Rxd4 {[%clk 0:00:48.1]} 38... Rc8 {[%clk
0:00:10.2]} 39. a4 {[%clk 0:00:47.9]} 39... Rd8 {[%clk 0:00:09.6]} 40. Rxd8
{[%clk 0:00:46.2]} 40... Kxd8 {[%clk 0:00:10.5]} 41. Kg3 {[%clk 0:00:45.3]}
41... Ke7 {[%clk 0:00:10.5]} 42. Kh4 {[%clk 0:00:45.2]} 42... Kd6 {[%clk
0:00:10.7]} 43. Kg5 {[%clk 0:00:45.2]} 43... Kc5 {[%clk 0:00:11.1]} 44. Kf6
{[%clk 0:00:44.8]} 44... Bc8 {[%clk 0:00:10.9]} 45. Ke5 {[%clk 0:00:43.1]} 45...
e3 {[%clk 0:00:11.1]} 46. h4 {[%clk 0:00:41.5]} 46... h6 {[%clk 0:00:05.5]} 47.
h5 {[%clk 0:00:40.6]} 47... Bd7 {[%clk 0:00:05.7]} 48. Bd3 {[%clk 0:00:38.9]}
48... Kb4 {[%clk 0:00:05.3]} 49. Kd4 {[%clk 0:00:35.2]} 49... Kxa4 {[%clk
0:00:05.6]} 50. Kxe3 {[%clk 0:00:35.3]} 50... Kb4 {[%clk 0:00:05.8]} 51. Kd4
{[%clk 0:00:35.6]} 51... Bc8 {[%clk 0:00:01.4]} 52. Ke5 {[%clk 0:00:34.8]} 52...
Bd7 {[%clk 0:00:01.8]} 53. Kd6 {[%clk 0:00:34.3]} 53... Be8 {[%clk 0:00:02.1]}
54. Ke7 {[%clk 0:00:33.1]} 54... Bxh5 {[%clk 0:00:01.9]} 55. Bxf5 {[%clk
0:00:31.1]} 55... Kxc4 {[%clk 0:00:02.8]} 56. Bd7 {[%clk 0:00:30.7]} 56... Kc5
{[%clk 0:00:03.7]} 57. f5 {[%clk 0:00:30.4]} 57... Bg4 {[%clk 0:00:04.1]} 58. f6
{[%clk 0:00:29.7]} 58... Bh5 {[%clk 0:00:04.8]} 59. f7 {[%clk 0:00:28.9]} 59...
Bxf7 {[%clk 0:00:04.9]} 60. Kxf7 {[%clk 0:00:29.2]} 60... h5 {[%clk 0:00:05.8]}
61. Ke6 {[%clk 0:00:25.8]} 61... h4 {[%clk 0:00:06.7]} 62. Ke5 {[%clk
0:00:25.1]} 62... h3 {[%clk 0:00:07.3]} 63. Bxh3 {[%clk 0:00:25]} 63... Kxb5
{[%clk 0:00:08.2]} 64. Kd4 {[%clk 0:00:25.2]} 64... Kb4 {[%clk 0:00:09.1]} 65.
Kd3 {[%clk 0:00:24]} 65... a5 {[%clk 0:00:09.2]} 66. Be6 {[%clk 0:00:22.3]}
66... Ka3 {[%clk 0:00:09.2]} 67. Kc4 {[%clk 0:00:21.2]} 67... Ka4 {[%clk
0:00:08.1]} 68. Bd7+ {[%clk 0:00:20.4]} 68... Ka3 {[%clk 0:00:08.5]} 69. Kb5
{[%clk 0:00:20.4]} 69... a4 {[%clk 0:00:07.7]} 70. Kxb6 {[%clk 0:00:20.3]} 70...
Kb3 {[%clk 0:00:08.6]} 71. Ka5 {[%clk 0:00:17.4]} 71... a3 {[%clk 0:00:08.7]}
72. Kb5 {[%clk 0:00:16.9]} 72... Kb2 {[%clk 0:00:09.6]} 73. Be6 {[%clk
0:00:16.4]} 73... a2 {[%clk 0:00:09.8]} 74. Bxa2 {[%clk 0:00:15.9]} 1/2-1/2

[Event "Early-Titled-Tuesday-Blitz-March-05-2024"]
[Site "Chess.com"]
[Date "2024.03.05"]
[Round "10"]
[White "ploxoi"]
[Black "bazar-wokzal"]
[Result "0-1"]
[WhiteElo "2439"]
[BlackElo "2578"]
[TimeControl "180+1"]
[EndTime "9:59:20 PST"]
[Termination "bazar-wokzal won by resignation"]

1. d4 {[%clk 0:03:00]} 1... Nf6 {[%clk 0:02:59.2]} 2. c4 {[%clk 0:02:59.4]} 2...
Nc6 {[%clk 0:02:58.9]} 3. Nf3 {[%clk 0:02:57.8]} 3... e6 {[%clk 0:02:58.9]} 4.
Nc3 {[%clk 0:02:57.1]} 4... Bb4 {[%clk 0:02:58.3]} 5. Qc2 {[%clk 0:02:57.2]}
5... d6 {[%clk 0:02:57.3]} 6. a3 {[%clk 0:02:51.9]} 6... Bxc3+ {[%clk
0:02:57.1]} 7. Qxc3 {[%clk 0:02:52.8]} 7... O-O {[%clk 0:02:56.8]} 8. g3 {[%clk
0:02:45.4]} 8... Qe7 {[%clk 0:02:56.9]} 9. Bg2 {[%clk 0:02:45.2]} 9... e5 {[%clk
0:02:57.3]} 10. dxe5 {[%clk 0:02:39.3]} 10... dxe5 {[%clk 0:02:57.2]} 11. O-O
{[%clk 0:02:39.9]} 11... Bg4 {[%clk 0:02:57.3]} 12. h3 {[%clk 0:02:35]} 12...
Bh5 {[%clk 0:02:44.6]} 13. Bg5 {[%clk 0:02:29.9]} 13... h6 {[%clk 0:02:43.9]}
14. Be3 {[%clk 0:02:27.3]} 14... Rfd8 {[%clk 0:02:26.5]} 15. Rfe1 {[%clk
0:02:18.6]} 15... a5 {[%clk 0:02:23]} 16. Rad1 {[%clk 0:02:17.7]} 16... Rxd1
{[%clk 0:02:07.1]} 17. Rxd1 {[%clk 0:02:15.4]} 17... e4 {[%clk 0:02:07.4]} 18.
Nd4 {[%clk 0:02:15.8]} 18... Nxd4 {[%clk 0:02:06.6]} 19. Bxd4 {[%clk 0:02:16.4]}
19... Rd8 {[%clk 0:01:55.9]} 20. Rd2 {[%clk 0:02:08.2]} 20... Qe6 {[%clk
0:01:36.6]} 21. Bxf6 {[%clk 0:01:22.6]} 21... Rxd2 {[%clk 0:01:35.3]} 22. Qxd2
{[%clk 0:01:23.5]} 22... gxf6 {[%clk 0:01:35.3]} 23. Qd4 {[%clk 0:01:21.7]}
23... Bxe2 {[%clk 0:01:10.6]} 24. Bxe4 {[%clk 0:01:21.5]} 24... Qxh3 {[%clk
0:01:02.6]} 25. Qxf6 {[%clk 0:01:14.8]} 25... Qe6 {[%clk 0:00:40.7]} 26. Qd8+
{[%clk 0:00:55.1]} 26... Kg7 {[%clk 0:00:38.7]} 27. Bd5 {[%clk 0:00:55.2]} 27...
Qe5 {[%clk 0:00:29.8]} 28. b4 {[%clk 0:00:23.1]} 28... c6 {[%clk 0:00:27.1]} 29.
Bg2 {[%clk 0:00:20.6]} 29... axb4 {[%clk 0:00:26.8]} 30. axb4 {[%clk 0:00:21.5]}
30... Bxc4 {[%clk 0:00:25.2]} 31. Qd2 {[%clk 0:00:20.1]} 31... Bd5 {[%clk
0:00:22.6]} 32. Bf1 {[%clk 0:00:18.9]} 32... Qe4 {[%clk 0:00:21.9]} 33. Qc3+
{[%clk 0:00:18.7]} 33... Kg8 {[%clk 0:00:21.1]} 34. f3 {[%clk 0:00:17.2]} 34...
Qxf3 {[%clk 0:00:20.7]} 35. Qxf3 {[%clk 0:00:18.1]} 35... Bxf3 {[%clk 0:00:21]}
36. Kf2 {[%clk 0:00:18.8]} 36... Bd5 {[%clk 0:00:21.1]} 37. Ke3 {[%clk
0:00:19.3]} 37... b6 {[%clk 0:00:21]} 38. Kd4 {[%clk 0:00:19.7]} 38... Bh1
{[%clk 0:00:18.3]} 39. Bc4 {[%clk 0:00:16.3]} 39... Kg7 {[%clk 0:00:18.4]} 40.
Ke5 {[%clk 0:00:16.8]} 40... Kg6 {[%clk 0:00:14.6]} 41. Bb3 {[%clk 0:00:15.5]}
41... f6+ {[%clk 0:00:13.6]} 42. Kf4 {[%clk 0:00:14.4]} 42... c5 {[%clk
0:00:12.8]} 43. bxc5 {[%clk 0:00:14.8]} 43... bxc5 {[%clk 0:00:13.3]} 44. Bc4
{[%clk 0:00:15.7]} 44... Bc6 {[%clk 0:00:12.6]} 45. Bd3+ {[%clk 0:00:16]} 45...
Kg7 {[%clk 0:00:12.1]} 46. Bc4 {[%clk 0:00:15.8]} 46... Bd7 {[%clk 0:00:09]} 47.
Kf3 {[%clk 0:00:14.9]} 47... f5 {[%clk 0:00:07.9]} 48. Kf4 {[%clk 0:00:15.2]}
48... Kf6 {[%clk 0:00:08.4]} 49. Bd3 {[%clk 0:00:13.4]} 49... Be6 {[%clk
0:00:08.7]} 50. Bb1 {[%clk 0:00:05.9]} 50... c4 {[%clk 0:00:08.6]} 51. Bc2
{[%clk 0:00:02.7]} 51... Ke7 {[%clk 0:00:06.7]} 52. Ke3 {[%clk 0:00:02.5]} 52...
Kf6 {[%clk 0:00:04.6]} 53. Kd4 {[%clk 0:00:03]} 53... Kg5 {[%clk 0:00:04.7]} 54.
Bd1 {[%clk 0:00:02.6]} 54... Bg8 {[%clk 0:00:03.9]} 55. Be2 {[%clk 0:00:02]}
55... f4 {[%clk 0:00:02.2]} 56. gxf4+ {[%clk 0:00:02.2]} 56... Kxf4 {[%clk
0:00:02.7]} 57. Kc3 {[%clk 0:00:02]} 57... Bf7 {[%clk 0:00:02.3]} 58. Kd4 {[%clk
0:00:01.8]} 58... Kg5 {[%clk 0:00:01.8]} 59. Ke3 {[%clk 0:00:01.2]} 59... h5
{[%clk 0:00:01.6]} 60. Kf2 {[%clk 0:00:01.6]} 60... h4 {[%clk 0:00:02.1]} 61.
Kg1 {[%clk 0:00:01.6]} 61... Be6 {[%clk 0:00:02.5]} 62. Bd1 {[%clk 0:00:02.5]}
62... Kf4 {[%clk 0:00:02.8]} 63. Bc2 {[%clk 0:00:03]} 63... c3 {[%clk
0:00:03.1]} 64. Kh2 {[%clk 0:00:03.9]} 64... Bf5 {[%clk 0:00:03.5]} 65. Bd1
{[%clk 0:00:03.5]} 65... Ke3 {[%clk 0:00:02.4]} 66. Bb3 {[%clk 0:00:02.4]} 66...
Kd2 {[%clk 0:00:02.3]} 0-1

[Event "Early-Titled-Tuesday-Blitz-March-05-2024"]
[Site "Chess.com"]
[Date "2024.03.05"]
[Round "10"]
[White "maciek_92"]
[Black "Juwen"]
[Result "1-0"]
[WhiteElo "2889"]
[BlackElo "2665"]
[TimeControl "180+1"]
[EndTime "9:59:23 PST"]
[Termination "maciek_92 won on time"]

1. c4 {[%clk 0:03:00.9]} 1... e5 {[%clk 0:02:59]} 2. g3 {[%clk 0:03:00.6]} 2...
c6 {[%clk 0:02:58.1]} 3. Nf3 {[%clk 0:03:00.5]} 3... e4 {[%clk 0:02:58.5]} 4.
Nd4 {[%clk 0:03:01.1]} 4... d5 {[%clk 0:02:58.7]} 5. cxd5 {[%clk 0:03:02]} 5...
Qxd5 {[%clk 0:02:59]} 6. e3 {[%clk 0:03:01.1]} 6... Nf6 {[%clk 0:02:57.5]} 7.
Nc3 {[%clk 0:03:00.7]} 7... Qe5 {[%clk 0:02:57.5]} 8. d3 {[%clk 0:03:01.2]} 8...
Bb4 {[%clk 0:02:50.8]} 9. Bd2 {[%clk 0:03:01.1]} 9... exd3 {[%clk 0:02:49.3]}
10. Bxd3 {[%clk 0:02:58.4]} 10... O-O {[%clk 0:02:45.3]} 11. O-O {[%clk
0:02:48.9]} 11... Bh3 {[%clk 0:02:44.4]} 12. Re1 {[%clk 0:02:49.1]} 12... Nbd7
{[%clk 0:02:43.5]} 13. Nc2 {[%clk 0:02:29.2]} 13... Be7 {[%clk 0:02:29]} 14. e4
{[%clk 0:02:23.4]} 14... Rad8 {[%clk 0:02:24.6]} 15. Bf4 {[%clk 0:02:20.9]}
15... Qa5 {[%clk 0:02:24.1]} 16. e5 {[%clk 0:02:07.1]} 16... Ng4 {[%clk
0:02:08.5]} 17. a3 {[%clk 0:01:24.8]} 17... g5 {[%clk 0:01:43.3]} 18. b4 {[%clk
0:01:19.3]} 18... Qc7 {[%clk 0:01:36.6]} 19. Qf3 {[%clk 0:00:42.7]} 19... Ndxe5
{[%clk 0:01:03.7]} 20. Bxe5 {[%clk 0:00:43.6]} 20... Nxe5 {[%clk 0:01:03.2]} 21.
Bxh7+ {[%clk 0:00:24.4]} 21... Kxh7 {[%clk 0:01:04.1]} 22. Qh5+ {[%clk
0:00:22.5]} 22... Kg7 {[%clk 0:01:02.8]} 23. Qxh3 {[%clk 0:00:18.9]} 23... Nf3+
{[%clk 0:01:02.6]} 24. Kg2 {[%clk 0:00:17.2]} 24... Nxe1+ {[%clk 0:00:50.8]} 25.
Rxe1 {[%clk 0:00:18.1]} 25... Qd7 {[%clk 0:00:47.4]} 26. g4 {[%clk 0:00:10.8]}
26... Rh8 {[%clk 0:00:43.7]} 27. Qf3 {[%clk 0:00:10]} 27... Rh6 {[%clk
0:00:36.8]} 28. Ne3 {[%clk 0:00:10.2]} 28... Rf6 {[%clk 0:00:28]} 29. Nf5+
{[%clk 0:00:11.1]} 29... Rxf5 {[%clk 0:00:28]} 30. gxf5 {[%clk 0:00:10.4]} 30...
Bf6 {[%clk 0:00:26.8]} 31. Ne4 {[%clk 0:00:09.5]} 31... Qd4 {[%clk 0:00:26.9]}
32. Re3 {[%clk 0:00:08.4]} 32... Rh8 {[%clk 0:00:25.8]} 33. h3 {[%clk
0:00:05.8]} 33... Rh4 {[%clk 0:00:25.2]} 34. Ng3 {[%clk 0:00:05.2]} 34... Kh6
{[%clk 0:00:20]} 35. Qe2 {[%clk 0:00:05.7]} 35... Qd5+ {[%clk 0:00:19.3]} 36. f3
{[%clk 0:00:04.4]} 36... Qd4 {[%clk 0:00:17.6]} 37. Re4 {[%clk 0:00:04.2]} 37...
Rxe4 {[%clk 0:00:16.5]} 38. Nxe4 {[%clk 0:00:05.1]} 38... Be5 {[%clk 0:00:15.8]}
39. Nf2 {[%clk 0:00:05.4]} 39... Kg7 {[%clk 0:00:13.2]} 40. Ng4 {[%clk 0:00:05]}
40... Bf6 {[%clk 0:00:13]} 41. Nf2 {[%clk 0:00:04.8]} 41... Qf4 {[%clk
0:00:12.8]} 42. Qd3 {[%clk 0:00:04.5]} 42... Be5 {[%clk 0:00:12.6]} 43. Ne4
{[%clk 0:00:03.7]} 43... Qh2+ {[%clk 0:00:12.4]} 44. Kf1 {[%clk 0:00:04.3]}
44... Qxh3+ {[%clk 0:00:11.4]} 45. Ke2 {[%clk 0:00:05]} 45... Qxf5 {[%clk
0:00:11.2]} 46. Qd8 {[%clk 0:00:04.5]} 46... Bf4 {[%clk 0:00:10.5]} 47. Qe7
{[%clk 0:00:04.5]} 47... Qe5 {[%clk 0:00:09.9]} 48. Qxb7 {[%clk 0:00:04.6]}
48... Qb2+ {[%clk 0:00:09.8]} 49. Kd3 {[%clk 0:00:04.8]} 49... Qb3+ {[%clk
0:00:09.6]} 50. Kd4 {[%clk 0:00:03]} 50... Qxf3 {[%clk 0:00:09.3]} 51. Qxc6
{[%clk 0:00:02.5]} 51... Qe3+ {[%clk 0:00:09.3]} 52. Kc4 {[%clk 0:00:01.6]}
52... Qxa3 {[%clk 0:00:08]} 53. Kb5 {[%clk 0:00:01.8]} 53... a6+ {[%clk
0:00:07.4]} 54. Kb6 {[%clk 0:00:02.1]} 54... Qxb4+ {[%clk 0:00:07.3]} 55. Ka7
{[%clk 0:00:02.9]} 55... a5 {[%clk 0:00:05.8]} 56. Qf6+ {[%clk 0:00:02.9]} 56...
Kg8 {[%clk 0:00:04.9]} 57. Qd8+ {[%clk 0:00:03.5]} 57... Kg7 {[%clk 0:00:04.6]}
58. Qf6+ {[%clk 0:00:04.1]} 58... Kg8 {[%clk 0:00:05]} 59. Qd8+ {[%clk
0:00:04.4]} 59... Kh7 {[%clk 0:00:05.1]} 60. Nf6+ {[%clk 0:00:04.3]} 60... Kg6
{[%clk 0:00:05.3]} 61. Nd5 {[%clk 0:00:04.8]} 61... Qc5+ {[%clk 0:00:05]} 62.
Kb7 {[%clk 0:00:04.8]} 62... Qb5+ {[%clk 0:00:04.4]} 63. Ka8 {[%clk 0:00:03.3]}
63... Qc6+ {[%clk 0:00:04.3]} 64. Ka7 {[%clk 0:00:03.6]} 64... Qd6 {[%clk
0:00:03.8]} 65. Qg8+ {[%clk 0:00:03]} 65... Kf5 {[%clk 0:00:02.5]} 66. Qxf7+
{[%clk 0:00:03.3]} 66... Ke4 {[%clk 0:00:02.8]} 67. Nc3+ {[%clk 0:00:02.8]}
67... Kf3 {[%clk 0:00:02.4]} 68. Qb7+ {[%clk 0:00:03.2]} 68... Kg4 {[%clk
0:00:01]} 69. Qc8+ {[%clk 0:00:03]} 1-0

[Event "Early-Titled-Tuesday-Blitz-March-05-2024"]
[Site "Chess.com"]
[Date "2024.03.05"]
[Round "10"]
[White "Hope_6"]
[Black "WindWhistler11"]
[Result "0-1"]
[WhiteElo "2782"]
[BlackElo "2551"]
[TimeControl "180+1"]
[EndTime "9:59:42 PST"]
[Termination "WindWhistler11 won on time"]

1. e4 {[%clk 0:02:59.1]} 1... e6 {[%clk 0:03:00.1]} 2. d4 {[%clk 0:02:59.2]}
2... d5 {[%clk 0:03:00.6]} 3. e5 {[%clk 0:02:59.9]} 3... c5 {[%clk 0:03:00.6]}
4. c3 {[%clk 0:03:00.4]} 4... Nc6 {[%clk 0:03:00.4]} 5. Nf3 {[%clk 0:03:00.9]}
5... Bd7 {[%clk 0:03:01.1]} 6. Be2 {[%clk 0:03:00.1]} 6... Nge7 {[%clk
0:03:01.4]} 7. O-O {[%clk 0:03:00.3]} 7... cxd4 {[%clk 0:03:01.6]} 8. cxd4
{[%clk 0:03:00.2]} 8... Nf5 {[%clk 0:03:02.4]} 9. Na3 {[%clk 0:02:59.1]} 9...
Be7 {[%clk 0:03:00.8]} 10. Nc2 {[%clk 0:02:49.3]} 10... Rc8 {[%clk 0:02:56.3]}
11. a3 {[%clk 0:02:47.1]} 11... h5 {[%clk 0:02:54.3]} 12. b4 {[%clk 0:02:45.3]}
12... Qb6 {[%clk 0:02:42.6]} 13. Bb2 {[%clk 0:02:37.4]} 13... Na5 {[%clk
0:02:37]} 14. Nd2 {[%clk 0:02:34.2]} 14... Nc4 {[%clk 0:02:33.4]} 15. Nxc4
{[%clk 0:02:30.3]} 15... dxc4 {[%clk 0:02:33.2]} 16. Bc3 {[%clk 0:02:30.5]}
16... Ba4 {[%clk 0:02:27.2]} 17. Rc1 {[%clk 0:02:26.6]} 17... Bg5 {[%clk
0:02:18.4]} 18. f4 {[%clk 0:02:15.1]} 18... Ne3 {[%clk 0:02:10.3]} 19. Qd2
{[%clk 0:02:12.4]} 19... Nxf1 {[%clk 0:02:08.4]} 20. Rxf1 {[%clk 0:02:11.7]}
20... Bxc2 {[%clk 0:02:06.1]} 21. Qxc2 {[%clk 0:02:11.1]} 21... Be7 {[%clk
0:02:03.4]} 22. f5 {[%clk 0:02:10.1]} 22... Kd8 {[%clk 0:01:48.1]} 23. Bf3
{[%clk 0:02:05]} 23... Kc7 {[%clk 0:01:44.2]} 24. Kh1 {[%clk 0:02:04.9]} 24...
Kb8 {[%clk 0:01:44.6]} 25. fxe6 {[%clk 0:01:59.6]} 25... fxe6 {[%clk 0:01:42.6]}
26. Qg6 {[%clk 0:01:59.4]} 26... Rcf8 {[%clk 0:01:31.2]} 27. Rb1 {[%clk
0:01:51.1]} 27... Qa6 {[%clk 0:01:19.2]} 28. Qe4 {[%clk 0:01:40.9]} 28... g5
{[%clk 0:01:13.2]} 29. g3 {[%clk 0:01:25.5]} 29... Rxf3 {[%clk 0:01:07.8]} 30.
Qxf3 {[%clk 0:01:25.2]} 30... Qxa3 {[%clk 0:01:07.4]} 31. Qe3 {[%clk 0:01:10.4]}
31... Rf8 {[%clk 0:01:04.2]} 32. Ra1 {[%clk 0:01:02.2]} 32... Qb3 {[%clk
0:01:01.8]} 33. d5 {[%clk 0:01:02.4]} 33... a6 {[%clk 0:00:43.8]} 34. d6 {[%clk
0:01:01.9]} 34... Bd8 {[%clk 0:00:43.1]} 35. b5 {[%clk 0:00:57.1]} 35... Qxb5
{[%clk 0:00:41.8]} 36. Bd4 {[%clk 0:00:54]} 36... Qd5+ {[%clk 0:00:39.8]} 37.
Kg1 {[%clk 0:00:53.5]} 37... Rf3 {[%clk 0:00:40.1]} 38. Ba7+ {[%clk 0:00:36.7]}
38... Ka8 {[%clk 0:00:39.9]} 39. Qc5 {[%clk 0:00:37.6]} 39... Qxc5+ {[%clk
0:00:16.4]} 40. Bxc5 {[%clk 0:00:38.5]} 40... b6 {[%clk 0:00:16]} 41. Bf2 {[%clk
0:00:35.6]} 41... Kb7 {[%clk 0:00:15.6]} 42. h3 {[%clk 0:00:32.1]} 42... Rd3
{[%clk 0:00:13.8]} 43. g4 {[%clk 0:00:28.4]} 43... Rxh3 {[%clk 0:00:13.1]} 44.
gxh5 {[%clk 0:00:28.1]} 44... Rxh5 {[%clk 0:00:14]} 45. Rf1 {[%clk 0:00:26.3]}
45... Rh3 {[%clk 0:00:11.3]} 46. Bd4 {[%clk 0:00:24.1]} 46... Rd3 {[%clk
0:00:11.5]} 47. Rf7+ {[%clk 0:00:24]} 47... Kc6 {[%clk 0:00:12.1]} 48. Bf2
{[%clk 0:00:24.1]} 48... b5 {[%clk 0:00:09.9]} 49. Rf8 {[%clk 0:00:24.2]} 49...
Bb6 {[%clk 0:00:08.6]} 50. Bxb6 {[%clk 0:00:16.5]} 50... Kxb6 {[%clk 0:00:08.7]}
51. Rc8 {[%clk 0:00:15.7]} 51... b4 {[%clk 0:00:07.4]} 52. Rxc4 {[%clk
0:00:14.9]} 52... a5 {[%clk 0:00:06.4]} 53. Kf2 {[%clk 0:00:13.5]} 53... Kb5
{[%clk 0:00:03.9]} 54. Rc7 {[%clk 0:00:12.5]} 54... b3 {[%clk 0:00:04.1]} 55.
Ke2 {[%clk 0:00:12.6]} 55... Rd5 {[%clk 0:00:04]} 56. d7 {[%clk 0:00:08.8]}
56... Rxe5+ {[%clk 0:00:03.5]} 57. Kd3 {[%clk 0:00:08.2]} 57... Rd5+ {[%clk
0:00:03.9]} 58. Kc3 {[%clk 0:00:08.9]} 58... a4 {[%clk 0:00:04.6]} 59. Kb2
{[%clk 0:00:09.3]} 59... g4 {[%clk 0:00:03.1]} 60. Ka3 {[%clk 0:00:09.1]} 60...
Kb6 {[%clk 0:00:03.5]} 61. Rc4 {[%clk 0:00:08.3]} 61... Rxd7 {[%clk 0:00:03.6]}
62. Rxg4 {[%clk 0:00:09]} 62... Rd2 {[%clk 0:00:03.2]} 63. Rxa4 {[%clk
0:00:09.5]} 63... b2 {[%clk 0:00:03.3]} 64. Ka2 {[%clk 0:00:08.4]} 64... Kc5
{[%clk 0:00:03.7]} 65. Ra8 {[%clk 0:00:07.6]} 65... e5 {[%clk 0:00:03.9]} 66.
Rc8+ {[%clk 0:00:06.3]} 66... Kb4 {[%clk 0:00:03.9]} 67. Kb1 {[%clk 0:00:06.4]}
67... e4 {[%clk 0:00:02.8]} 68. Re8 {[%clk 0:00:06.8]} 68... Re2 {[%clk
0:00:03.4]} 69. Rc8 {[%clk 0:00:06]} 69... Kb3 {[%clk 0:00:03.5]} 70. Rb8+
{[%clk 0:00:06]} 70... Kc3 {[%clk 0:00:04.1]} 71. Rd8 {[%clk 0:00:06.4]} 71...
Re1+ {[%clk 0:00:03.6]} 0-1